Cogmind - Beta 13 *** ADVENTURER MODE // 2024.04.10 @ 22:30:20 Player: Doske Result: Self-destructed Performance ------------- Evolutions (4) 2000 Regions Visited (16) 3200 Robots Destroyed (195) 975 Value Destroyed (7128) 7128 Prototype IDs (6) 120 Alien Tech Used (0) 0 Bonus (1324) 1324 TOTAL SCORE: 14747 Bonus ------- High Alert Combat Kills 261 Follower Combat Kills 89 Entered Garrisons 200 Used RIF Installer 500 Aligned with FarCom 300 Friendly Fire -26 Cogmind --------- Core Integrity 248/850 Matter 280/300 Energy 160/160 System Corruption 13% Temperature Cool (0) Movement Hovering (150) Ox1 Location -6/Lower Caves Parts ------- > --- POWER (2) -------- Light Nuclear Core > --- PROPULSION (5) --- Combat Airjet > --- UTILITY (6) ------ Advanced Signal Interpreter Stasis Canceller Drone Bay (2/2) > --- WEAPON (2) ------- Power Sword > --- INVENTORY (5) ---- Fission Core VTOL Module Layered Light Armor Plating Heavy Ion Cannon Precision Rocket Launcher Peak State ------------ > --- POWER ------------ Light Nuclear Core Fission Core > --- PROPULSION ------- VTOL Module VTOL Module Makeshift Flight Unit > --- UTILITY ---------- Enhanced Optical Array Advanced Sensor Array Improved Signal Interpreter Advanced Signal Interpreter Relay Coupler [Grunt] Relay Coupler [Sentry] > --- WEAPON ----------- Gauss Cannon Shock Maul > --- INVENTORY -------- Layered Light Armor Plating Heavy Ion Cannon Proton Missile Launcher Powered Hammer [Rating: 52] Favorites ----------- Power Light Angular Momentum Engine Engine Light Angular Momentum Engine Power Core Light Nuclear Core Propulsion Light Treads Treads Light Treads Wheel Wheel Hover Unit Improved Airjet Flight Unit VTOL Module Utility 0b10 Alert Chip Device Sensor Array Storage Large Storage Unit Processor 0b10 Alert Chip Hackware Relay Coupler [Grunt] Protection Light Armor Plating Weapon Gauss Cannon Energy Gun Heavy Laser Energy Cannon Heavy Ion Cannon Ballistic Gun Assault Rifle Ballistic Cannon Gauss Cannon Launcher Grenade Launcher Special Weapon Mining Laser Impact Weapon Heavy Mace Slashing Weapon Ripper Special Melee Weapon Datajack Build | -11 -10 -10 -10 -9 -8 -8 -8 -7 -7 -7 -7 -7 -6 -6 -6 -6 ------- Run | Yrd Mat Min Exi Min Mat Gar Mat Fac Was Fac Low Low Fac Was Fac Low Slots Evolved 8 | . . . . . 4 . . 2 . . . . 2 . . . Power 1 | . . . . . . . . 1 . . . . . . . . Propulsion 3 | . . . . . 2 . . 1 . . . . . . . . Utility 4 | . . . . . 2 . . . . . . . 2 . . . Weapon . | . . . . . . . . . . . . . . . . . Parts Attached 198 | 6 8 5 1 5 17 21 46 14 1 26 18 . 12 . 12 6 Power 23 | 1 . 1 . . 1 2 4 2 . 5 2 . 1 . 3 1 Engine 11 | 1 . 1 . . 1 2 1 . . 4 1 . . . . . Core 12 | . . . . . . . 3 2 . 1 1 . 1 . 3 1 Reactor . | . . . . . . . . . . . . . . . . . Propulsion 69 | 2 1 1 . 1 7 10 12 5 . 12 11 . 2 . 3 2 Treads 33 | 2 1 1 . 1 6 10 10 . . 2 . . . . . . Leg . | . . . . . . . . . . . . . . . . . Wheel 3 | . . . . . . . . . . 3 . . . . . . Hover 15 | . . . . . . . . 3 . 5 5 . . . 1 1 Flight 18 | . . . . . 1 . 2 2 . 2 6 . 2 . 2 1 Utility 54 | 1 3 2 1 . 6 4 12 4 1 5 2 . 6 . 5 2 Device 14 | . 3 . . . 1 . 1 1 . 1 . . 2 . 3 2 Storage 5 | 1 . . . . 2 . . 1 . 1 . . . . . . Processor 9 | . . 1 1 . . . . 2 1 1 . . 1 . 2 . Hackware 6 | . . . . . . . 3 . . . . . 3 . . . Protection 20 | . . 1 . . 3 4 8 . . 2 2 . . . . . Artifact . | . . . . . . . . . . . . . . . . . Weapon 52 | 2 4 1 . 4 3 5 18 3 . 4 3 . 3 . 1 1 Energy Gun 3 | 1 . . . . . . 1 1 . . . . . . . . Energy Cannon 4 | . . . . . . . 1 . . 2 1 . . . . . Ballistic Gun 9 | 1 3 1 . 1 . 1 1 1 . . . . . . . . Ballistic Cannon 8 | . . . . 1 . 1 4 . . . 1 . . . 1 . Launcher 11 | . 1 . . 1 2 1 4 1 . . 1 . . . . . Special Weapon 2 | . . . . 1 1 . . . . . . . . . . . Impact Weapon 5 | . . . . . . . 2 . . 1 . . 2 . . . Slashing Weapon 4 | . . . . . . 2 1 . . . . . . . . 1 Piercing Weapon . | . . . . . . . . . . . . . . . . . Special Melee Weapon 6 | . . . . . . . 4 . . 1 . . 1 . . . Unidentified Prototypes 4 | . . . 1 . 1 . . . . 1 . . 1 . . . Corrupted Parts 1 | . . . . . . . . . . . . . 1 . . . System Corruption 1 | . . . . . . . . . . . . . 1 . . . Parts Lost 53 | . . . . . 3 11 15 3 5 5 . . 1 . 9 1 Power 11 | . . . . . 1 1 3 1 1 2 . . . . 2 . Propulsion 19 | . . . . . 1 4 5 . 3 2 . . 1 . 3 . Utility 17 | . . . . . 1 5 4 2 1 . . . . . 3 1 Weapon 6 | . . . . . . 1 3 . . 1 . . . . 1 . Highest Loss Streak 8 | . . . . . 1 4 3 3 5 2 . . 1 . 8 1 To Critical Strikes 2 | . . . . . 1 . . 1 . . . . . . . . Average Slot Usage (%) 84 | . 99 99 100 100 92 86 88 49 74 68 80 61 67 80 72 26 Engine 7 | . 14 14 14 14 8 8 5 . . 6 3 . . . . . Core 2 | . . . . . . . 2 9 9 1 6 7 6 6 5 4 Treads 19 | . 27 28 28 28 29 28 30 . . 3 . . . . . . Hover 1 | . . . . . . . . 2 21 6 16 . . . . 5 Flight 4 | . . . . . . . . 10 4 3 10 23 19 20 18 . Device 3 | . 13 . . . 9 1 . 6 4 . . . 3 . 5 1 Storage 7 | . 14 14 14 14 9 9 8 . . 1 . . . . . . Processor 9 | . . 6 14 14 9 9 5 . 16 17 7 7 10 13 15 6 Hackware 4 | . . . . . . . 8 12 7 7 7 7 9 26 13 . Protection 6 | . . 6 . . 8 13 10 . . 2 11 7 4 . . . Ballistic Gun 6 | . 27 28 28 8 . 1 1 . 4 . . . . . . . Ballistic Cannon 3 | . . . . 3 9 6 1 . . . . 7 6 6 5 . Launcher 3 | . . . . 14 8 1 3 . 4 . . . . . . . Impact Weapon 1 | . . . . . . . . . . 6 6 . 1 6 5 . Slashing Weapon 1 | . . . . . . 6 6 . . . . . . . . 6 Naked Turns . | . . . . . . . . . . . . . . . . . Heaviest Build 49 | 14 15 25 18 24 47 41 49 19 19 36 36 16 20 14 16 18 Greatest Support 80 | 40 40 40 40 40 80 80 80 30 30 45 45 20 20 16 16 12 Greatest Overweight (x) 11 | 2 . . . . . 10 2 3 . 4 11 . 1 . 2 1 Average Overweight (x) . | . . . . . . . . . . . . . . . . . Largest Inventory Capacity 15 | 8 8 8 8 8 15 15 15 5 5 5 5 5 5 5 5 5 Average Capacity 9 | 7 8 8 8 8 13 15 14 5 5 5 5 5 5 5 5 5 Most Carried 15 | 1 8 8 8 8 15 15 15 5 3 5 5 5 5 5 5 5 Average Carried 8 | . 4 7 7 7 10 14 14 4 3 4 4 5 4 5 4 4 Final Capacity 15 | 8 8 8 8 8 15 15 5 5 5 5 5 5 5 5 5 5 Final Carried 15 | 1 8 8 7 7 11 15 3 3 3 5 5 5 5 5 4 5 Class Distribution -------------------- 46% | Mutant 14% | Bothacker-Mutant 10% | Scavenger-Mutant 10% | Skirmisher 9% | Scout 6% | Scavenger-Skirmisher Dominant Class ---------------- Mutant | -10/Materials Mutant | -10/Mines Mutant | -10/Exiles Mutant | -9/Mines Skirmisher | -8/Materials Scavenger-Mutant | -8/Garrison Bothacker-Mutant | -8/Materials Mutant | -7/Factory Scavenger-Mutant | -7/Waste Mutant | -7/Factory Mutant | -7/Lower Caves Mutant | -7/Lower Caves Scout | -6/Factory Mutant | -6/Waste Scout | -6/Factory Mutant | -6/Lower Caves Resources | -11 -10 -10 -10 -9 -8 -8 -8 -7 -7 -7 -7 -7 -6 -6 -6 -6 ----------- Run | Yrd Mat Min Exi Min Mat Gar Mat Fac Was Fac Low Low Fac Was Fac Low Matter Collected 4505 | 159 310 248 . 214 952 691 564 145 . 470 127 . 388 . 124 113 Remotely . | . . . . . . . . . . . . . . . . . Salvage Created 6157 | . 375 250 . 130 1068 602 1661 85 . 526 220 . 495 . 647 98 Parts 317 | . 32 7 . 19 72 42 82 8 . 20 4 . 11 . 14 6 Haulers Intercepted 1 | . 1 . . . . . . . . . . . . . . . Recyclers Shooed 3 | . . . . . 1 . 1 . . . . . . . 1 . Parts Field Recycled . | . . . . . . . . . . . . . . . . . Retrieved Matter . | . . . . . . . . . . . . . . . . . Parts Self-Destructed 7 | . . . . . . . . . . . 2 1 . . . 4 Prevented . | . . . . . . . . . . . . . . . . . Kills | -11 -10 -10 -10 -9 -8 -8 -8 -7 -7 -7 -7 -7 -6 -6 -6 -6 ------- Run | Yrd Mat Min Exi Min Mat Gar Mat Fac Was Fac Low Low Fac Was Fac Low Combat Hostiles Destroyed 147 | . 11 5 . 10 31 27 35 3 . 8 7 . 5 . 2 3 Melee 34 | . . . . . . 5 18 . . 3 2 . 3 . . 3 Guns 23 | . 8 5 . 1 . 6 . 3 . . . . . . . . Cannons 45 | . . . . 2 19 15 7 . . 1 . . 1 . . . AOE 35 | . 3 . . 7 12 1 9 . . . 2 . . . 1 . Classes Destroyed 16 | . 5 . . 2 5 1 1 . . 1 . . . . . 1 Worker 10 | . . . . . 2 . 3 . . 4 . . . . 1 . Builder 7 | . 1 . . 1 2 . . . . 1 . . . . 2 . Tunneler 4 | . . . . 1 . . . . . 2 . . . . 1 . Hauler 1 | . 1 . . . . . . . . . . . . . . . Recycler 10 | . . . . . 1 . 1 . . 2 . . 2 . 4 . Operator 5 | . . . . . 2 . 1 . . 1 . . 1 . . . Watcher 15 | . 2 . . . 4 . 4 1 . . . . 2 . 2 . Swarmer 51 | . 6 . . 4 7 12 4 3 . 4 5 . 3 . . 3 Cutter 2 | . . . . . . 2 . . . . . . . . . . Grunt 55 | . 5 5 . 2 11 8 22 . . . 2 . . . . . Duelist 1 | . . . . . . . 1 . . . . . . . . . Sentry 21 | . . . . . 10 3 7 . . . . . . . 1 . Hunter 6 | . . . . . 3 2 1 . . . . . . . . . Programmer 7 | . . . . . . . . . . 4 . . 2 . 1 . Samaritan 1 | . . . . . . . . . . . . . . . . 1 Assembled 4 | . . . . 4 . . . . . . . . . . . . Best Kill Streak 12 | . 3 2 . 4 12 5 6 3 . 2 3 . 4 . 3 3 Combat Bots Only 9 | . 3 2 . 4 9 5 5 3 . 2 3 . 4 . 1 3 Max Kills in Single Turn 4 | . 3 1 . 4 3 2 3 1 . 1 1 . 1 . 2 1 Gunslinging . | . . . . . . . . . . . . . . . . . Exploded 3 | . 3 . . 3 2 1 2 . . . 1 . . . 1 . Melee 1 | . . . . . . 1 1 . . 1 1 . 1 . . 1 Uniques/NPCs Destroyed . | . . . . . . . . . . . . . . . . . Combat | -11 -10 -10 -10 -9 -8 -8 -8 -7 -7 -7 -7 -7 -6 -6 -6 -6 -------- Run | Yrd Mat Min Exi Min Mat Gar Mat Fac Was Fac Low Low Fac Was Fac Low Hostile Shots Fired 957 | . 57 33 . 7 111 174 193 19 3 123 65 5 84 . 65 18 Missed 323 | . 19 9 . 2 38 43 58 4 . 46 28 5 35 . 34 2 Damage Taken 8043 | . 296 235 . 62 828 1373 2343 206 105 696 403 . 606 . 709 181 Core 1526 | . 43 42 . 11 60 158 222 63 43 228 54 . 177 . 282 143 Absorbed by Shields 57 | . . . . . . . . 37 . 20 . . . . . . Ignored by Resistances 2116 | . 98 70 . 22 237 404 510 62 29 215 123 . 171 . 122 53 Regen/Repaired (Parts) 265 | . 16 . . . 195 . . 17 . 23 . . 14 . . . Core Remaining (%) 56 | 100 . . . 61 . . 20 . . . . 44 . . . . Volleys Fired 355 | . 33 22 . 16 101 86 59 10 2 2 13 . 4 . 7 . Largest 2 | . 2 2 . 2 2 2 2 1 2 1 1 . 1 . 1 . Hottest 148 | . 50 40 . 100 148 78 84 69 61 65 65 . 48 . 48 . Shots Fired 449 | . 66 44 . 26 112 89 68 10 4 5 13 . 4 . 8 . Gun 148 | . 65 44 . 8 . 15 4 10 2 . . . . . . . Cannon 249 | . . . . 5 98 71 51 . . 5 7 . 4 . 8 . Launcher 46 | . 1 . . 10 11 3 13 . 2 . 6 . . . . . Special 6 | . . . . 3 3 . . . . . . . . . . . Kinetic 344 | . 65 44 . 13 98 86 21 1 2 . 2 . 4 . 8 . Thermal 59 | . . . . 3 3 . 34 9 . 5 5 . . . . . Explosive 40 | . 1 . . 10 11 3 13 . 2 . . . . . . . Electromagnetic 6 | . . . . . . . . . . . 6 . . . . . Robot Hit Streak 22 | . 16 9 . 6 22 18 20 9 13 16 17 . 3 . 7 . Robot Miss Streak 3 | . 2 2 . 2 3 2 1 1 . . 2 . . . . . Penetration Max . | . . . . . . . . . . . . . . . . . Secondary Targets 1 | . 1 . . . . . . . . . . . . . . . Max Gunslinging Chain 1 | . 1 . . . . . . . . . . . . . . . Shots Hit Robots 466 | . 49 34 . 10 71 79 118 16 4 34 12 . 19 . 14 6 Core Hits 253 | . 24 12 . 20 52 44 70 5 . 7 6 . 5 . 5 3 Critical Kills 5 | . . . . . . . 1 1 . 1 . . 1 . 1 . Critical Parts Destroyed 18 | . . . . . . . 1 . . 4 3 . 5 . 5 . Critical Strikes 56 | . . . . 1 12 11 10 1 . 5 3 . 6 . 7 . Meltdown 1 | . . . . . . . 1 . . . . . . . . . Destroy 1 | . . . . . . . . 1 . . . . . . . . Blast 23 | . . . . 1 12 8 1 . . . . . . . 1 . Smash 21 | . . . . . . . 1 . . 5 3 . 6 . 6 . Sever 10 | . . . . . . 3 7 . . . . . . . . . Melee Attacks 279 | . . . . . . 23 113 7 . 47 7 . 28 . 45 9 Impact 131 | . . . . . . . 8 . . 47 7 . 24 . 45 . Slashing 130 | . . . . . . 23 98 . . . . . . . . 9 Piercing . | . . . . . . . . . . . . . . . . . Sneak Attacks 41 | . . . . . . . 10 5 . 10 . . 6 . 8 2 Combat Hostiles 3 | . . . . . . . 1 . . 1 . . . . 1 . Follow-up Attacks . | . . . . . . . . . . . . . . . . . Damage Inflicted 17569 | . 703 475 . 599 3034 2277 4682 214 303 1875 475 . 1014 . 1596 322 Guns 1661 | . 584 470 . 52 . 283 68 167 37 . . . . . . . Cannons 4189 | . . . . 59 1790 1210 799 . . 88 82 . 30 . 131 . Explosions 4163 | . 106 . . 482 1220 73 1363 . 266 . 162 . . . 491 . Melee 7356 | . . . . . . 634 2452 . . 1787 231 . 956 . 974 322 Ramming 200 | . 13 5 . 6 24 77 . 47 . . . . 28 . . . Kinetic 4885 | . 584 470 . 111 1790 1493 223 16 37 . . . 30 . 131 . Thermal 1353 | . . . . . 388 . 644 151 . 88 82 . . . . . Explosive 3613 | . 106 . . 482 832 73 1363 . 266 . . . . . 491 . Electromagnetic 162 | . . . . . . . . . . . 162 . . . . . Impact 4252 | . . . . . . . 304 . . 1787 231 . 956 . 974 . Slashing 3104 | . . . . . . 634 2148 . . . . . . . . 322 Piercing . | . . . . . . . . . . . . . . . . . Highest Corruption 20 | . . . . . 5 5 20 . 5 6 6 6 2 2 13 13 Average Corruption 5 | . . . . . 2 5 10 . 5 5 6 6 1 2 3 13 Corruption Purged . | . . . . . . . . . . . . . . . . . Corruption Blocked 3 | . . . . . . . . . . 3 . . . . . . Effects 268 | . . . . . 36 53 92 . 2 35 19 2 5 . 10 14 Message Errors 52 | . . . . . 3 10 23 . 1 9 5 . . . 1 . Matter Fused 68 | . . . . . 13 14 17 . 1 9 4 1 2 . 1 6 Heat Flow Errors 38 | . . . . . 1 10 17 . . 3 4 1 1 . . 1 Energy Discharges 25 | . . . . . 3 5 8 . . 3 2 . . . 2 2 Parts Rejected 4 | . . . . . . . 3 . . . . . . . 1 . Parts Fused 1 | . . . . . . . . . . 1 . . . . . . Data Loss (minor) 40 | . . . . . 5 11 11 . . 3 3 . 1 . 2 4 Data Loss (major) 11 | . . . . . 5 . 3 . . 3 . . . . . . Misfires 11 | . . . . . 2 2 3 . . 3 . . . . 1 . Alerts 14 | . . . . . 4 1 4 . . 1 1 . 1 . 1 1 Misdirections 2 | . . . . . . . 1 . . . . . . . 1 . Weapon Failures 2 | . . . . . . . 2 . . . . . . . . . Overload Shots . | . . . . . . . . . . . . . . . . . Overflow Damage 2760 | . . . . . 67 125 313 13 . 690 145 . 531 . 778 98 Projectiles 193 | . . . . . 42 102 21 . . . . . . . 28 . Explosions 162 | . . . . . 25 . 60 . . . 3 . . . 74 . Melee 2405 | . . . . . . 23 232 13 . 690 142 . 531 . 676 98 Knockbacks 39 | . . . . . 9 11 1 . . 6 1 . 5 . 6 . Impact 16 | . . . . . . . . . . 6 1 . 5 . 4 . Kinetic 22 | . . . . . 9 10 1 . . . . . . . 2 . Secondary 1 | . . . . . . 1 . . . . . . . . . . Self-Inflicted Damage 377 | . . . . 14 58 . 72 22 16 . . . 13 . 182 . Shots 9 | . . . . 2 1 . 2 . 1 . . . . . 3 . Rammed 46 | . 1 3 . 1 4 30 . 5 . . . . 2 . . . Targets Rammed 47 | . 2 3 . 1 4 30 . 5 . . . . 2 . . . Kicked . | . . . . . . . . . . . . . . . . . Crushed 1 | . 1 . . . . . . . . . . . . . . . Highest Temperature 326 | . 5 26 . 48 216 257 272 98 24 242 326 95 179 . 24 167 Average Temperature 64 | . 5 9 . 18 19 67 83 61 14 55 118 50 58 . 10 83 Received Heat Transfer 2478 | . 114 198 . . 189 612 1080 . . 54 99 . 12 . 120 . Effects 3 | . . . . . . . . . . . 3 . . . . . Energy Bleed 2 | . . . . . . . . . . . 2 . . . . . Interference 1 | . . . . . . . . . . . 1 . . . . . Siege Activations . | . . . . . . . . . . . . . . . . . Robots Corrupted . | . . . . . . . . . . . . . . . . . Combat Hostiles . | . . . . . . . . . . . . . . . . . Parts Fried 32 | . . . . . . . . . . 11 2 . 8 . 11 . Impact Corruptions 71 | . . . . . . . 3 1 . 26 6 . 15 . 20 . Robots Melted 1 | . . . . . . . 1 . . . . . . . . . Combat Hostiles 1 | . . . . . . . 1 . . . . . . . . . Parts Melted 3 | . . . . . . . 2 . . 1 . . . . . . Heat Transferred 1754 | . . . . . 200 . 1036 296 . 111 111 . . . . . Parts Sabotaged . | . . . . . . . . . . . . . . . . . Parts Stolen . | . . . . . . . . . . . . . . . . . Parts Stripped . | . . . . . . . . . . . . . . . . . Power Chain Reactions 1 | . . . . . . . . . . . 1 . . . . . Alert | -11 -10 -10 -10 -9 -8 -8 -8 -7 -7 -7 -7 -7 -6 -6 -6 -6 ------- Run | Yrd Mat Min Exi Min Mat Gar Mat Fac Was Fac Low Low Fac Was Fac Low Peak Influence 1092 | . 187 170 . 141 240 1092 548 103 31 189 . . 360 92 180 . Initial 458 | . . . . . 7 13 458 83 20 . . . 80 92 56 . Average 160 | . 87 27 . 50 77 598 182 70 13 68 . . 101 92 76 . Maximum Alert Level 3 | . . . . . 1 3 2 . . . . . 1 . . . Low Security (%) 80 | 100 100 100 . 100 93 11 74 100 100 100 . . 80 100 100 . Level 1 6 | . . . . . 6 10 12 . . . . . 19 . . . Level 2 6 | . . . . . . 34 13 . . . . . . . . . Level 3 5 | . . . . . . 43 . . . . . . . . . . Level 4 . | . . . . . . . . . . . . . . . . . Level 5 . | . . . . . . . . . . . . . . . . . High Security . | . . . . . . . . . . . . . . . . . Max Security . | . . . . . . . . . . . . . . . . . Squads Dispatched 44 | . 1 1 . 1 9 . 8 . . 11 . . 7 . 6 . Investigation 27 | . 1 . . . 7 . 6 . . 5 . . 4 . 4 . Extermination 6 | . . . . . . . . . . 3 . . 2 . 1 . Reinforcement 7 | . . . . 1 2 . 1 . . 2 . . . . 1 . Assault 4 | . . 1 . . . . 1 . . 1 . . 1 . . . Garrison . | . . . . . . . . . . . . . . . . . Intercept . | . . . . . . . . . . . . . . . . . Searches Triggered . | . . . . . . . . . . . . . . . . . Construction Impeded 2 | . . . . 1 1 . . . . . . . . . . . Haulers Reinforced 1 | . . . . . . . . . . 1 . . . . . . Active Scanning Responses . | . . . . . . . . . . . . . . . . . Cargo Convoy Interrupts . | . . . . . . . . . . . . . . . . . Stealth | -11 -10 -10 -10 -9 -8 -8 -8 -7 -7 -7 -7 -7 -6 -6 -6 -6 --------- Run | Yrd Mat Min Exi Min Mat Gar Mat Fac Was Fac Low Low Fac Was Fac Low Distress Signals 13 | . 2 . . . 2 . 6 . . 3 . . . . . . Communications Jammed . | . . . . . . . . . . . . . . . . . Distress Signals . | . . . . . . . . . . . . . . . . . Times Spotted 257 | . 15 9 . 10 37 32 59 8 5 23 18 3 17 4 13 4 Peak Tracking Total 6 | . 4 3 . 4 4 5 6 4 5 5 5 3 4 4 4 3 Tactical Retreats 25 | . . . . . 1 2 5 . . 6 3 . 4 . 3 1 Traps | -11 -10 -10 -10 -9 -8 -8 -8 -7 -7 -7 -7 -7 -6 -6 -6 -6 ------- Run | Yrd Mat Min Exi Min Mat Gar Mat Fac Was Fac Low Low Fac Was Fac Low Traps Triggered 22 | . 4 . . 1 6 2 1 1 . 1 . . 3 . 3 . Indirectly . | . . . . . . . . . . . . . . . . . Trap Hack Attempts . | . . . . . . . . . . . . . . . . . Triggered . | . . . . . . . . . . . . . . . . . Disarmed . | . . . . . . . . . . . . . . . . . Reprogrammed 6 | . . . . . 6 . . . . . . . . . . . Reused 1 | . . . . . 1 . . . . . . . . . . . Traps Extracted . | . . . . . . . . . . . . . . . . . Installed . | . . . . . . . . . . . . . . . . . Triggered 2 | . . . . . 1 . . . . . . 1 . . . . Machines | -11 -10 -10 -10 -9 -8 -8 -8 -7 -7 -7 -7 -7 -6 -6 -6 -6 ---------- Run | Yrd Mat Min Exi Min Mat Gar Mat Fac Was Fac Low Low Fac Was Fac Low Machines Disabled 30 | . . . . . 8 10 4 . . 1 . . 1 . 6 . Max in Single Turn 5 | . . . . . 2 2 1 . . 1 . . 1 . 5 . Garrison Access 3 | . . . . . . . 1 . . 1 . . 1 . . . Garrison Relay 4 | . . . . . . 4 . . . . . . . . . . Phase Generator 1 | . . . . . . 1 . . . . . . . . . . Machines Repaired . | . . . . . . . . . . . . . . . . . Machines Dismantled . | . . . . . . . . . . . . . . . . . Machines Sabotaged . | . . . . . . . . . . . . . . . . . Overloaded Fab Kills . | . . . . . . . . . . . . . . . . . Hacking | -11 -10 -10 -10 -9 -8 -8 -8 -7 -7 -7 -7 -7 -6 -6 -6 -6 --------- Run | Yrd Mat Min Exi Min Mat Gar Mat Fac Was Fac Low Low Fac Was Fac Low Machines Accessed 63 | . 5 1 3 1 12 4 7 4 . 9 1 . 10 . 6 . Terminals 47 | . 4 1 . . 9 4 7 3 . 7 . . 7 . 5 . Fabricators 2 | . . . . . . . . . . 1 . . 1 . . . Repair Stations 6 | . 1 . . . 2 . . 1 . 1 . . 1 . . . Recycling Units . | . . . . . . . . . . . . . . . . . Scanalyzers 2 | . . . . . . . . . . . . . 1 . 1 . Garrison Access 1 | . . . . . 1 . . . . . . . . . . . Total Hacks 201 | . 12 4 26 1 40 13 23 8 . 28 1 . 29 . 16 . Successful 118 | . 9 2 26 1 23 3 10 6 . 11 1 . 20 . 6 . Failed 83 | . 3 2 . . 17 10 13 2 . 17 . . 9 . 10 . Catastrophic 16 | . . . . . 3 3 3 . . 3 . . 2 . 2 . Database Lockouts . | . . . . . . . . . . . . . . . . . Manual 121 | . 8 4 1 . 33 10 23 3 . 20 . . 9 . 10 . Terminals 138 | . 9 4 . . 33 13 23 4 . 23 . . 16 . 13 . Fabricators 4 | . . . . . . . . . . 2 . . 2 . . . Repair Stations 23 | . 3 . . . 6 . . 4 . 3 . . 7 . . . Recycling Units . | . . . . . . . . . . . . . . . . . Scanalyzers 7 | . . . . . . . . . . . . . 4 . 3 . Garrison Access 1 | . . . . . 1 . . . . . . . . . . . Terminal Hacks 57 | . 4 1 26 1 8 1 3 1 . 3 1 . 7 . 1 . Record 26 | . . . 26 . . . . . . . . . . . . . Part Schematic 1 | . . . . . . . . . . . . . 1 . . . Prototype ID Bank 1 | . 1 . . . . . . . . . . . . . . . Open Door 3 | . . . . 1 . 1 . . . . 1 . . . . . Open DSF 6 | . . . . . . . . 1 . 1 . . 3 . 1 . Level Access Points 1 | . . . . . 1 . . . . . . . . . . . Branch Access Points 4 | . 1 . . . 1 . . . . 1 . . 1 . . . Emergency Access Points 1 | . . 1 . . . . . . . . . . . . . . Terminal Index 2 | . 1 . . . . . . . . . . . 1 . . . Unreport Threat 3 | . . . . . 1 . 2 . . . . . . . . . Reprogram Traps 1 | . . . . . 1 . . . . . . . . . . . Dispatch Records 1 | . . . . . . . . . . 1 . . . . . . Recall Investigation 4 | . . . . . 3 . 1 . . . . . . . . . Registered Components 1 | . 1 . . . . . . . . . . . . . . . Zone Layout 2 | . . . . . 1 . . . . . . . 1 . . . Fabricator Hacks 3 | . . . . . . . . . . 1 . . 2 . . . Network Status 1 | . . . . . . . . . . 1 . . . . . . Load Schematic 1 | . . . . . . . . . . . . . 1 . . . Build 1 | . . . . . . . . . . . . . 1 . . . Repair Station Hacks 17 | . 2 . . . 5 . . 3 . 2 . . 5 . . . Scan Component 9 | . 1 . . . 3 . . 1 . 1 . . 3 . . . Repair 6 | . 1 . . . 2 . . 1 . 1 . . 1 . . . Refit 2 | . . . . . . . . 1 . . . . 1 . . . Recycling Unit Hacks . | . . . . . . . . . . . . . . . . . Scanalyzer 3 | . . . . . . . . . . . . . 2 . 1 . Insert Component 2 | . . . . . . . . . . . . . 1 . 1 . Analyze 1 | . . . . . . . . . . . . . 1 . . . Garrison Access Hacks 1 | . . . . . 1 . . . . . . . . . . . Unlock Access 1 | . . . . . 1 . . . . . . . . . . . Unauthorized Hacks 37 | . 3 1 . . 9 2 7 2 . 5 . . 4 . 4 . Terminals 37 | . 3 1 . . 9 2 7 2 . 5 . . 4 . 4 . Track 1 | . . . . . . . . . . . . . . . 1 . Assimilate 1 | . . . . . . . . . . . . . . . 1 . Botnet 35 | . 3 1 . . 9 2 7 2 . 5 . . 4 . 2 . Fabricators . | . . . . . . . . . . . . . . . . . Repair Stations . | . . . . . . . . . . . . . . . . . Recycling Units . | . . . . . . . . . . . . . . . . . Scanalyzers . | . . . . . . . . . . . . . . . . . Garrison Access . | . . . . . . . . . . . . . . . . . Data Cores Recovered 4 | . . . . . 1 . 1 . . 1 . . 1 . . . Used 1 | . . . . . . . . . . . . . 1 . . . Hacking Detections 50 | . 4 1 . . 11 4 7 2 . 8 . . 8 . 5 . Full Trace Events 29 | . 2 1 . . 5 3 5 . . 5 . . 4 . 4 . Feedback Events . | . . . . . . . . . . . . . . . . . Feedback Blocked . | . . . . . . . . . . . . . . . . . Robot Schematics Acquired . | . . . . . . . . . . . . . . . . . Robots Built . | . . . . . . . . . . . . . . . . . Authchips . | . . . . . . . . . . . . . . . . . Time . | . . . . . . . . . . . . . . . . . Total Robot Build Rating . | . . . . . . . . . . . . . . . . . Part Schematics Acquired 2 | . . . . . . . . . . . . . 2 . . . Parts Built 2 | . . . . . . . . . . . . . 2 . . . Authchips . | . . . . . . . . . . . . . . . . . Time 73 | . . . . . . . . . . . . . 73 . . . Total Part Build Rating 6 | . . . . . . . . . . . . . 6 . . . Parts Repaired 6 | . 1 . . . 2 . . 1 . 1 . . 1 . . . Time 114 | . 13 . . . 58 . . 13 . 16 . . 14 . . . Parts Recycled . | . . . . . . . . . . . . . . . . . Recycled Matter . | . . . . . . . . . . . . . . . . . Retrieved Matter . | . . . . . . . . . . . . . . . . . Retrieved Components . | . . . . . . . . . . . . . . . . . Parts Scanalyzed 2 | . . . . . . . . . . . . . 1 . 1 . Part Schematics Acquired 1 | . . . . . . . . . . . . . 1 . . . Parts Damaged . | . . . . . . . . . . . . . . . . . Bothacking | -11 -10 -10 -10 -9 -8 -8 -8 -7 -7 -7 -7 -7 -6 -6 -6 -6 ------------ Run | Yrd Mat Min Exi Min Mat Gar Mat Fac Was Fac Low Low Fac Was Fac Low Used RIF Installer 1 | . . . . . . 1 . . . . . . . . . . Robots Hacked 12 | . . . . . . . 4 5 . . . . 3 . . . Non-combat 12 | . . . . . . . 4 5 . . . . 3 . . . Combat . | . . . . . . . . . . . . . . . . . Robot Hacks Applied 13 | . . . . . . . 5 5 . . . . 3 . . . no_distress 1 | . . . . . . . . . . . . . 1 . . . deconstruct_machine 1 | . . . . . . . 1 . . . . . . . . . map_walls 2 | . . . . . . . 1 1 . . . . . . . . find_fabricator 1 | . . . . . . . . . . . . . 1 . . . locate_stockpiles 1 | . . . . . . . . 1 . . . . . . . . find_recycling 1 | . . . . . . . . . . . . . 1 . . . link_fov 1 | . . . . . . . 1 . . . . . . . . . overload_power 1 | . . . . . . . . 1 . . . . . . . . amplify_resonance 1 | . . . . . . . 1 . . . . . . . . . streamctrl_low 1 | . . . . . . . . 1 . . . . . . . . formatsys_low 1 | . . . . . . . 1 . . . . . . . . . formatsys_high 1 | . . . . . . . . 1 . . . . . . . . Relay Couplers Released 25 | . . . . . . 18 3 . . 1 . . 3 . . . Machine Destruction 25 | . . . . . . 18 3 . . 1 . . 3 . . . Attached 6 | . . . . . . . 3 . . . . . 3 . . . Fabnet Peak Effective % . | . . . . . . . . . . . . . . . . . Robots Rewired . | . . . . . . . . . . . . . . . . . Allies Hacked . | . . . . . . . . . . . . . . . . . Hacks Repelled . | . . . . . . . . . . . . . . . . . Allies | -11 -10 -10 -10 -9 -8 -8 -8 -7 -7 -7 -7 -7 -6 -6 -6 -6 -------- Run | Yrd Mat Min Exi Min Mat Gar Mat Fac Was Fac Low Low Fac Was Fac Low Total Allies 9 | . . 2 . . . 2 1 2 1 . . . . . 1 . Largest Group 2 | . . 1 . . . 2 1 1 1 . . . . . 1 . Highest-Rated Group 45 | . . 31 . . . 45 10 26 31 . . . . . 10 . Highest-Rated Ally 31 | . . 31 . . . 25 10 26 31 . . . . . 10 . Total Orders 3 | . . . . . . . . 2 . . . . . . 1 . STAY 1 | . . . . . . . . 1 . . . . . . . . ROAM 1 | . . . . . . . . . . . . . . . 1 . FOLLOW 1 | . . . . . . . . 1 . . . . . . . . Ally Attacks 33 | . . 11 . . . 8 . . 14 . . . . . . . Total Damage 613 | . . 150 . . . 211 . . 252 . . . . . . . Kills 5 | . . 3 . . . 2 . . . . . . . . . . Allies Corrupted . | . . . . . . . . . . . . . . . . . Allies Melted . | . . . . . . . . . . . . . . . . . Intel | -11 -10 -10 -10 -9 -8 -8 -8 -7 -7 -7 -7 -7 -6 -6 -6 -6 ------- Run | Yrd Mat Min Exi Min Mat Gar Mat Fac Was Fac Low Low Fac Was Fac Low Robot Analysis Total . | . . . . . . . . . . . . . . . . . Derelict Logs Recovered 3 | . . 1 . 1 . . . . . . . . . . . 1 Drone Launches . | . . . . . . . . . . . . . . . . . Drone Recoveries . | . . . . . . . . . . . . . . . . . Exploration | -11 -10 -10 -10 -9 -8 -8 -8 -7 -7 -7 -7 -7 -6 -6 -6 -6 ------------- Run | Yrd Mat Min Exi Min Mat Gar Mat Fac Was Fac Low Low Fac Was Fac Low Turns Passed 17802 | 75 905 1323 1032 1134 2725 2121 2708 683 74 1532 706 49 1474 22 981 258 Spaces Moved 13058 | 44 452 567 642 589 1254 1052 1353 684 113 1425 876 117 1814 63 1732 281 Core 127 | 7 . . . . . 2 . 20 . 31 11 . . . 53 3 Treads 5858 | 37 452 567 642 589 1254 1050 1027 . . 240 . . . . . . Legs . | . . . . . . . . . . . . . . . . . Wheels 127 | . . . . . . . . . . 127 . . . . . . Hover 1763 | . . . . . . . . 50 113 729 575 . . . 19 277 Flight 5183 | . . . . . . . 326 614 . 298 290 117 1814 63 1660 1 Fastest Speed 32 | 50 160 160 160 160 160 160 34 34 58 32 36 42 35 35 35 35 Average Speed 98 | 149 160 160 160 160 160 166 132 57 58 81 45 42 39 35 37 80 Slowest Speed 600 | 160 160 160 160 160 160 550 320 200 60 270 600 42 127 35 195 150 Overloaded Moves . | . . . . . . . . . . . . . . . . . Propulsion Burnouts . | . . . . . . . . . . . . . . . . . Robots Hopped 32 | . . . . . . . 3 . . . . 3 4 . 22 . Cave-ins Triggered 3 | . . . . . . . 2 . . . . . . . 1 . Exploration Rate (%) 58 | 5 92 99 92 99 88 89 80 14 69 33 62 9 35 74 22 36 Regions Visited 16 Branch Regions 6 Pre-discovered Areas . | . . . . . . . . . . . . . . . . . Known Exits Taken 7 | . 1 1 1 . 1 . 1 . . 1 . . . . 1 . Unknown Exits Taken 4 | 1 . . . 1 . . . . . . 1 1 . . . . Scrap Searched 14 | . . 1 . 2 . . . . . . 1 . . . . 10 Spaces Dug 118 | . . . . 3 14 . 44 . . 10 2 . 8 . 37 . Terrain Destroyed 623 | . 3 . . 54 187 76 167 . 13 10 10 . 8 . 95 . Melee 86 | . . . . . . . 38 . . 9 . . 4 . 35 . Projectile 70 | . . . . 6 39 . 13 . . 1 2 . 4 . 5 . AOE 467 | . 3 . . 48 148 76 116 . 13 . 8 . . . 55 . Terrain Rammed . | . . . . . . . . . . . . . . . . . Walls Destroyed . | . . . . . . . . . . . . . . . . . Machines Disabled . | . . . . . . . . . . . . . . . . . Actions | -11 -10 -10 -10 -9 -8 -8 -8 -7 -7 -7 -7 -7 -6 -6 -6 -6 --------- Run | Yrd Mat Min Exi Min Mat Gar Mat Fac Was Fac Low Low Fac Was Fac Low Total 16974 | 51 565 939 647 749 1857 1273 2025 954 115 1708 1161 113 2512 62 1943 300 Wait 2791 | . 59 333 1 127 449 40 418 225 . 176 218 . 605 . 139 1 Move 12981 | 43 451 566 641 588 1253 1050 1345 684 112 1424 875 110 1806 62 1690 281 Hop 29 | . . . . . . . 3 . . . . 3 4 . 19 . Pick Up 91 | 2 8 4 . 6 18 9 19 2 . 10 5 . 5 . 3 . Fast Attach 105 | 5 4 1 1 . 6 6 19 11 1 19 10 . 9 . 9 4 Attach 58 | 1 1 2 . . 6 10 15 2 . 7 6 . 3 . 3 2 Detach 36 | . 2 1 1 . 3 6 4 . . 4 6 . 1 . 5 3 Swap 35 | . 3 2 . 5 5 5 12 1 . . 2 . . . . . Drop 97 | . 2 5 1 6 12 4 17 7 . 10 19 . 9 . 5 . Fire 355 | . 33 22 . 16 101 86 59 10 2 2 13 . 4 . 7 . Melee 279 | . . . . . . 23 113 7 . 47 7 . 28 . 45 9 Ram 7 | . . . . . . . . 5 . . . . 2 . . . Kick . | . . . . . . . . . . . . . . . . . Crush 40 | . 2 3 . 1 4 30 . . . . . . . . . . Escape Stasis 68 | . . . . . . 4 1 . . 9 . . 36 . 18 . Rewire 2 | . . . 2 . . . . . . . . . . . . . Trap . | . . . . . . . . . . . . . . . . . Miscellaneous . | . . . . . . . . . . . . . . . . . Route ------- -11/Scrapyard -10/Materials (discovered 4 exits: *Mat x2 / *Min x2) -10/Mines (discovered 4 exits: *Mat x2 / *Exi / *Sub) -10/Exiles (discovered 2 exits: *Min x2) -9/Mines (discovered 2 exits: *Mat x2) -8/Materials (discovered 4 exits: *Fac x3 / Gar) -8/Garrison (discovered 4 exits: *Mat x4) -8/Materials (discovered 2 exits: *Fac x2) -7/Factory -7/Waste -7/Factory (discovered 5 exits: *Fac x3 / *Low x2) -7/Lower Caves -7/Lower Caves -6/Factory (discovered 5 exits: [*Fac x3] / Low x2) -6/Waste -6/Factory -6/Lower Caves History --------- Turn | Location | Event 21 | -11/Scrapyard | Discovered new exit (range 15) 76 | -11/Scrapyard | Entered Materials 149 | -10/Materials | Identified exit to Mines 300 | -10/Materials | Build established: Mutant 547 | -10/Materials | Discovered new exit (range 13) 667 | -10/Materials | Repaired Sensor Array 813 | -10/Materials | Discovered new exit (range 14) 981 | -10/Materials | Entered Mines 1228 | -10/Mines | Met a Derelict testing a Signal Generator 1242 | -10/Mines | Found Signal Generator 1625 | -10/Mines | Discovered new exit (range 5) 1651 | -10/Mines | Identified exit to Subcaves 1692 | -10/Mines | Received a Mining Laser from a helpful Derelict 1845 | -10/Mines | Discovered new exit (range 9) 1857 | -10/Mines | Identified exit to Materials 2116 | -10/Mines | Discovered exit to Materials (range 16) 2208 | -10/Mines | Learned Materials machine intel 2298 | -10/Mines | Deemed a non-threat by the Exiles lab entrance 2298 | -10/Mines | Discovered new exit (range 5) 2303 | -10/Mines | Identified exit to Exiles 2304 | -10/Mines | Entered Exiles 2332 | -10/Exiles | Discovered new exit (range 15) 2351 | -10/Exiles | Identified exit to Mines 2384 | -10/Exiles | Met 8R-AWN 2413 | -10/Exiles | Met EX-HEX 2456 | -10/Exiles | Met EX-BIN 2481 | -10/Exiles | Aligned with FarCom system 2483 | -10/Exiles | Given EX-Vault access code 2522 | -10/Exiles | Opened EX-Vault 2620 | -10/Exiles | Warned to stay clear of 0b10 Research branches 2686 | -10/Exiles | Found Prototype Processor 2686 | -10/Exiles | Identified 0b10 Alert Chip 2767 | -10/Exiles | Met EX-DEC 2857 | -10/Exiles | Discovered exit to Mines (range 12) 3025 | -10/Exiles | Visited The Gauntlet 3336 | -10/Exiles | Left Exiles lab with 0b10 Alert Chip 3336 | -10/Exiles | Entered Mines 3815 | -9/Mines | Discovered new exit (range 9) 3990 | -9/Mines | Assembled infested the area 4152 | -9/Mines | Met a Derelict who couldn't figure out how to use a Trap Extractor 4422 | -9/Mines | Learned location of 1 exit from Proximity Caves 4422 | -9/Mines | Discovered new exit (range 8) 4470 | -9/Mines | Entered Materials 4470 | -8/Materials | Evolved 4 slots: Propulsion x2, Utility x2 4471 | -8/Materials | Loaded intel: 57 machine locations 4793 | -8/Materials | Build established: Skirmisher 4905 | -8/Materials | Discovered new exit (range 8) 4954 | -8/Materials | Identified exit to Garrison 5527 | -8/Materials | Repaired Med. Armor Plating 5737 | -8/Materials | Identified exit to Factory 6115 | -8/Materials | Repaired Lgt. Treads 6610 | -8/Materials | Build established: Scavenger-Skirmisher 6732 | -8/Materials | Destroyed 9 combat bots 7195 | -8/Materials | Entered Garrison 7228 | -8/Garrison | Triggered checkpoint 7266 | -8/Garrison | Garrison Relay disabled 7432 | -8/Garrison | Triggered checkpoint 7451 | -8/Garrison | Triggered checkpoint 7496 | -8/Garrison | Triggered checkpoint 7797 | -8/Garrison | Discovered new exit (range 5) 7802 | -8/Garrison | Lost 4 parts (3n1u) 7867 | -8/Garrison | Triggered checkpoint 7892 | -8/Garrison | Garrison Relay disabled 8020 | -8/Garrison | Rescued a captive Derelict 8021 | -8/Garrison | Rescued a captive Derelict 8064 | -8/Garrison | Build established: Mutant 8102 | -8/Garrison | Phase Generator disabled 8230 | -8/Garrison | Garrison Relay disabled 8259 | -8/Garrison | Discovered new exit (range 10) 8332 | -8/Garrison | Triggered checkpoint 8391 | -8/Garrison | Discovered new exit (range 3) 8486 | -8/Garrison | Triggered checkpoint 8501 | -8/Garrison | Garrison Relay disabled 8621 | -8/Garrison | Build established: Scavenger-Mutant 8721 | -8/Garrison | Discovered new exit (range 10) 8874 | -8/Garrison | Triggered checkpoint 9182 | -8/Garrison | Triggered checkpoint 9242 | -8/Garrison | Installed Relay Interface Framework 9316 | -8/Garrison | Entered Materials 9533 | -8/Materials | Build established: Bothacker-Mutant 10115 | -8/Materials | Discovered exit to Factory (range 9) 10413 | -8/Materials | Core integrity fell below 50% 10914 | -8/Materials | Crushed by falling debris 10915 | -8/Materials | System corruption reached 10% 11296 | -8/Materials | Crushed by falling debris 11327 | -8/Materials | Lost 3 parts (1p1u1w) 11882 | -8/Materials | Released all parts (7) 11999 | -8/Materials | Discovered exit to Factory (range 16) 12024 | -8/Materials | Entered Factory 12024 | -7/Factory | Evolved 2 slots: Power x1, Propulsion x1 12187 | -7/Factory | Build established: Mutant 12258 | -7/Factory | Discovered new exit (range 5) 12507 | -7/Factory | Lost 3 parts (1p2u) 12643 | -7/Factory | Repaired Flight Unit 12707 | -7/Factory | Sucked down chute 12707 | -7/Factory | Entered Waste 12708 | -7/Waste | Met a frightened Derelict 12722 | -7/Waste | EMP discharged 12728 | -7/Waste | Spotted C-40 Crusher 12746 | -7/Waste | Spotted C-40 Crusher 12748 | -7/Waste | Spotted C-40 Crusher 12751 | -7/Waste | Spotted C-40 Crusher 12755 | -7/Waste | Crushed by Compactor (1 part destroyed, 2 dropped) 12755 | -7/Waste | Crushed by Compactor (1 part destroyed, 1 dropped) 12757 | -7/Waste | Spotted C-40 Crusher 12758 | -7/Waste | Spotted C-40 Crusher 12759 | -7/Waste | Crushed by Compactor (1 part destroyed, 1 dropped) 12767 | -7/Waste | Discovered new exit (range 18) 12780 | -7/Waste | Identified exit to Factory 12781 | -7/Waste | Entered Factory 12790 | -7/Factory | Lost 5 parts (1p3n1u) 13072 | -7/Factory | Build established: Scavenger-Mutant 13202 | -7/Factory | Discovered new exit (range 13) 13463 | -7/Factory | Discovered new exit (range 18) 13996 | -7/Factory | Build established: Mutant 14088 | -7/Factory | Repaired VTOL Module? 14146 | -7/Factory | Identified exit to Lower Caves 14186 | -7/Factory | Discovered new exit (range 16) 14313 | -7/Factory | Entered Lower Caves 14462 | -7/Lower Caves | Core integrity fell below 50% 14648 | -7/Lower Caves | Encountered a Warlord checkpoint 14660 | -7/Lower Caves | Spotted B-75 Beast 14668 | -7/Lower Caves | Discovered new exit (range 12) 14680 | -7/Lower Caves | Attracted the attention of an 0b10 checkpoint 15019 | -7/Lower Caves | Entered another Lower Caves area 15021 | -7/Lower Caves | Discovered new exit (range 15) 15068 | -7/Lower Caves | Entered Factory 15068 | -6/Factory | Evolved 2 slots: Utility x2 15082 | -6/Factory | Discovered new exit (range 5) 15125 | -6/Factory | Identified exit to DSF 15460 | -6/Factory | Discovered new exit (range 9) 15503 | -6/Factory | Build established: Scout 15653 | -6/Factory | Fabricated Lgt. Nuclear Core? 16153 | -6/Factory | Repaired Broken VTOL Module 16365 | -6/Factory | Identified exit to Lower Caves 16365 | -6/Factory | Discovered new exit (range 8) 16377 | -6/Factory | Build established: Mutant 16542 | -6/Factory | Sucked down chute 16542 | -6/Factory | Entered Waste 16545 | -6/Waste | Spotted C-40 Crusher 16548 | -6/Waste | Spotted C-40 Crusher 16550 | -6/Waste | Spotted C-40 Crusher 16553 | -6/Waste | Spotted C-40 Crusher 16554 | -6/Waste | Spotted C-40 Crusher 16558 | -6/Waste | Spotted C-40 Crusher 16561 | -6/Waste | Discovered new exit (range 10) 16564 | -6/Waste | Identified exit to Factory 16564 | -6/Waste | Entered Factory 17282 | -6/Factory | Build established: Scout 17452 | -6/Factory | Crushed by falling debris 17452 | -6/Factory | System corruption reached 10% 17508 | -6/Factory | Core integrity fell below 50% 17523 | -6/Factory | Lost 8 parts (1p3n3u1w) 17536 | -6/Factory | Discovered exit to Lower Caves (range 10) 17545 | -6/Factory | Entered Lower Caves 17778 | -6/Lower Caves | Learned location of 1 exit from Factory 17803 | -6/Lower Caves | Self-destructed Last Messages --------------- 17788_ Found 11 Matter. 17790_ Searching scrap... 17790_ Found Arm. Huge Wheel. 17790_ Found Imp. System Restoration Module. 17790_ Found 23 Matter. 17791_ Searching scrap... 17791_ Found Force Booster. 17791_ Found Mak. Power Source. 17792_ Searching scrap... 17792_ Found EM Pulse Cannon. 17793_ Searching scrap... 17793_ Found Arm. Leg. 17793_ Searching scrap... 17793_ Found Unknown Device. 17794_ Searching scrap... 17794_ Found Unknown Device. 17797_ Acquired Unknown Device. 17797_ Identified Stasis Canceller. 17799_ Acquired Unknown Device. 17799_ Identified Drone Bay. Map ----- +----------------------------------------------------+ | ??????????????????????????? ?????????????????????? | | ??????????????????????????? #????????????????????? | | ??????????????????????????? ??????????????????? | | ?????????????????????????? ???????????????????? | | ?????????????????????????? ???????????????????? | | ?????????????????###?????? #???????????????????? | | ??????????? ???? ##???? #???????????????????? | | ???????????? ##??? ##??? #???????????????????? | | ???????????? #?? #?? ????????????????????? | | ????????????? ?? ## ?????????????????????? | | ????????????? # #?# ? ?????????????????????? | | ?????????????# #?# #?# ??????????????????????? | | ?????????????# #?# #?# #??????????????????????? | | ??????????#### #?# #?# #????????????????????#?? | | ?????????## # ### #?# #####????????????????# ? | | ????????## # ### #????????# ?????# | | ????????# ### #??????? # ???# | | ?????????# # #?# #????? # ?# | | ???????????## ########?# #???? # # " | | ????????????## ##????????# #??? " | | ?????????????# #?????????# #?? #?? | | ????????####?# ##???####?## ## #??????? | | ???????## ### ##????#%!### #?????????????? | | ???????# ##?????#*!=%# #?????????????? | | ??????## #??????#]!!%+ #?????????????? | | ??????# ## #??#=*@$# ## #????????? | | ??????# #??# ### ##??#####?????????? | | ??????# ##??####? #???#?????????????? | | ??????# ### ###???????? #?# ##???????????? | | ??????# #### #????####? ##? # ???????????? | | ??????# #?# ##??## #?#####?? ????????????# | | ?????## #?## #### ##??????? ????????????## | | ?##### ##??# #######? #???????????## | | ?# #### ## ##########?## | | ?# "" # ## ### | | ?# """"" ## | | ?# """" ######### #??# | | ?# " #???##### #??## | | ?# "" "" #???# ##### ## | | ?#!""" = "##???## ### ### | | ?# ""[%" "#?????## ##?# ##?## | | ?# ######## ##?# #???## | | ?# ## ## #### ### #???## | | ?########### ######?## #????# # | | ???????????# #??????## ##????# # | | ???????????# ### #???????####????? # | | ???????????# #?### #???????????????? | | ??????????## ##??## ##??????????????? | | ????????### ##?## #????????????????? | | ???????## ### ###### #????????? # | +----------------------------------------------------+ Best States ------------- Heat Dissipation 37 Energy Generation 23 Energy Capacity 335 Matter Stores 300 Matter Capacity 350 Sight Range 22 Robot Scan Range 16 Terrain Scan Range 16 Terrain Scan Density 85 Jamming Range 12 Corruption Block 3 Armor Coverage 375 Resistance: KI 20 Resistance: TH 20 Resistance: EX 20 Resistance: EM 20 Resistance: I 20 Resistance: S 20 Resistance: P 20 Evasion (%) 63 Recoil Reduction 4 Offensive Hacking 10 Relay Coupler Types 3 Relay Coupler Value 105 Item Schematics ----------------- Lgt. Nuclear Core | -6/Factory | Scanalyzed Phase Gun | -6/Factory | Hacked Robot Schematics ------------------ None Fabricated ------------ Lgt. Nuclear Core | x2 | -6/Factory Alien Tech Used ----------------- None Achievements -------------- Assimilation Complete Below Dynamic Key Error 47 Fist Fight Just What I Needed System Compromised Challenges ------------ None Game ------ Seed SniperNovaRedirector Manual? 0 Play Time 03:52:41 Cumulative 19.0 hours Start 2024.04.06 @ 16:40:49 End 2024.04.10 @ 22:30:20 Sessions 4 Manual Loads 0 Difficulty Adventurer Special Mode None Game No. 12 Rogue 0 Adventurer 12 Explorer 0 Win Type - Total 0 Types 0/0/0/0/0/0/0/0/0 Lore% 14 Gallery% 17 Achievement% 22 Wizard Run 0 Options --------- Layout 0 ASCII 0 Keyboard 1 Movement Numpad Keybinds 0 Fullscreen 2 Font 24/Smallcaps Map View 76x50 Zoom Use 0% Tactical HUD 1 Map Filters NONE Filters NONE Steam 1 RUN: c2ff99f7-bd09-4c88-820e-895fdd716ada